Cogmind - Beta 17.1 @@@ ROGUE MODE // 2026.08.29 @ 17:21:19 Player: Pitt Result: Destroyed by D-53 Grenadier with Mini Grenade Launcher Performance ------------- Evolutions (1) 500 Regions Visited (3) 600 Robots Destroyed (89) 445 Value Destroyed (2066) 2066 Prototype IDs (2) 40 Alien Tech Used (0) 0 Bonus (446) 446 TOTAL SCORE: 4097 Bonus ------- High Alert Combat Kills 446 Cogmind --------- Core Integrity 0/400 Matter 271/300 Energy 100/100 System Corruption 6% Temperature Cool (0) Movement Core (250) Ox4 Location -9/Mines Parts ------- > --- POWER (1) -------- (None) > --- PROPULSION (2) --- (None) > --- UTILITY (4) ------ Medium Storage Unit Machine Analyzer Melee Analysis Suite Hacking Suite > --- WEAPON (2) ------- Mace Mace > --- INVENTORY (10) --- Improved Heat Sink Small Storage Unit Structural Scanner Seismic Detector Light Armor Plating Datajack Mining Laser Mace Peak State ------------ > --- POWER ------------ Heavy Ion Engine > --- PROPULSION ------- VSS Leg VSS Leg > --- UTILITY ---------- Small Storage Unit Small Matter Pod Improved Terrain Scanner Terrain Scan Processor > --- WEAPON ----------- Improved Assault Rifle Improved Assault Rifle > --- INVENTORY -------- Improved Heat Sink Huge Storage Unit Structural Scanner Medium Armor Plating Hacking Suite Grenade Launcher Datajack Mining Laser [Rating: 23] Favorites ----------- Power Heavy Ion Engine Engine Heavy Ion Engine Propulsion Wheel Leg VSS Leg Wheel Wheel Utility Small Storage Unit Device Improved Terrain Scanner Storage Small Storage Unit Processor Terrain Scan Processor Hackware Hacking Suite Protection Medium Armor Plating Weapon Improved Light Cannon Energy Gun Small Laser Ballistic Gun Improved Assault Rifle Ballistic Cannon Improved Light Cannon Launcher Grenade Launcher Special Weapon Mining Laser Impact Weapon Mace Build | -11 -10 -9 -9 ------- Run | Yrd Mat Mat Min Slots Evolved 2 | . . 2 . Power . | . . . . Propulsion . | . . . . Utility 2 | . . 2 . Weapon . | . . . . Parts Attached 43 | 7 3 33 . Power 4 | 1 1 2 . Engine 4 | 1 1 2 . Core . | . . . . Reactor . | . . . . Propulsion 10 | 2 . 8 . Treads . | . . . . Leg 5 | . . 5 . Wheel 5 | 2 . 3 . Hover . | . . . . Flight . | . . . . Utility 17 | 2 1 14 . Device 5 | 2 . 3 . Storage 4 | . 1 3 . Processor 3 | . . 3 . Hackware 1 | . . 1 . Protection 4 | . . 4 . Artifact . | . . . . Weapon 12 | 2 1 9 . Energy Gun 2 | 1 . 1 . Energy Cannon . | . . . . Ballistic Gun 3 | 1 . 2 . Ballistic Cannon 2 | . . 2 . Launcher 1 | . 1 . . Special Weapon 1 | . . 1 . Impact Weapon 3 | . . 3 . Slashing Weapon . | . . . . Piercing Weapon . | . . . . Special Melee Weapon . | . . . . Unidentified Prototypes 2 | . . 2 . Parts Lost 15 | . . 15 . Power 1 | . . 1 . Propulsion 4 | . . 4 . Utility 7 | . . 7 . Weapon 3 | . . 3 . Highest Loss Streak 5 | . . 5 . To Critical Strikes 1 | . . 1 . Average Backups 7 | 2 6 7 8 Power . | . . . . Propulsion . | . 2 . . Utility 3 | . 2 4 5 Weapon 2 | . 1 2 2 Tool/Special . | . . . . Unused Backups 8 | . 1 2 5 Power . | . . . . Propulsion . | . . . . Utility 4 | . . 1 3 Weapon 3 | . 1 1 1 Tool/Special 1 | . . . 1 Average Slot Usage (%) 96 | . 100 97 66 Engine 10 | . 14 10 . Leg 12 | . . 14 . Wheel 9 | . 28 6 . Device 9 | . 15 9 . Storage 16 | . 12 16 11 Processor 9 | . . 11 22 Protection 4 | . . 5 . Energy Gun 4 | . 13 3 . Ballistic Gun 8 | . 14 7 . Ballistic Cannon 7 | . . 9 . Peak Build Rating 23 | 9 9 23 15 Average Rating 15 | 6 8 17 15 On Entrance 8 | . 9 9 15 Avg Prop Armor Cover (%) . | . . . . Naked Turns . | . . . . Heaviest Build 29 | 10 16 29 14 Greatest Support 24 | 20 20 24 3 Greatest Overweight (x) 6 | . . 6 4 Average Overweight (x) . | . . . 4 Largest Inventory Capacity 10 | 5 8 10 10 Average Capacity 7 | 5 7 8 10 Most Carried 9 | 5 8 9 8 Average Carried 7 | 2 6 7 8 Final Capacity 10 | 5 8 10 10 Final Carried 8 | 5 8 8 8 Class Distribution -------------------- 74% | Mutant 21% | Scavenger-Mutant 3% | Gladiator Dominant Class ---------------- Mutant | -10/Materials Mutant | -9/Materials Gladiator | -9/Mines Resources | -11 -10 -9 -9 ----------- Run | Yrd Mat Mat Min Matter Collected 2069 | 236 107 1706 20 Remotely . | . . . . Salvage Created 2072 | 53 237 1782 . Parts 162 | 6 8 148 . Haulers Intercepted 2 | . . 2 . Recyclers Shooed 2 | 1 . 1 . Parts Field Recycled . | . . . . Retrieved Matter . | . . . . Parts Self-Destructed . | . . . . Prevented . | . . . . Parts Restored . | . . . . Kills | -11 -10 -9 -9 ------- Run | Yrd Mat Mat Min Combat Hostiles Destroyed 56 | . 4 52 . Guns 17 | . 2 15 . Cannons 24 | . . 24 . AOE 13 | . 2 11 . Classes Destroyed 13 | 1 4 8 . Worker 10 | . 2 8 . Builder 6 | . 3 3 . Tunneler 3 | 3 . . . Hauler 2 | . . 2 . Recycler 2 | . 1 1 . Mechanic 2 | . . 2 . Operator 4 | . . 4 . Watcher 4 | . . 4 . Swarmer 13 | . . 13 . Grunt 30 | . 4 26 . Brawler 3 | . . 3 . Duelist 1 | . . 1 . Sentry 9 | . . 9 . Best Kill Streak 8 | 3 7 8 . Combat Bots Only 5 | . 2 5 . Max Kills in Single Turn 3 | 1 2 3 . Gunslinging . | . . . . Exploded 3 | . 1 3 . Melee . | . . . . Uniques/NPCs Destroyed . | . . . . Combat | -11 -10 -9 -9 -------- Run | Yrd Mat Mat Min Hostile Shots Fired 291 | . 12 276 3 Missed 79 | . 3 76 . Hits 212 | . 9 200 3 Melee 11 | . . 11 . Projectile 201 | . 9 189 3 AOE 6 | . . . 6 Critical Strikes 5 | . . 5 . Damage Taken 2693 | . 134 2390 169 Core 430 | . 15 322 93 Absorbed by Shields 147 | . . 147 . Regen/Repaired (Parts) 328 | . . 328 . Core Remaining (%) 97 | 100 94 . . Volleys Fired 215 | 4 25 186 . Largest 2 | 2 2 2 . Hottest 100 | 60 60 100 . Shots Fired 364 | 8 42 314 . Gun 165 | 8 37 120 . Cannon 174 | . . 174 . Launcher 24 | . 5 19 . Special 1 | . . 1 . Kinetic 285 | 4 20 261 . Thermal 55 | 4 17 34 . Explosive 24 | . 5 19 . Electromagnetic . | . . . . Robot Hit Streak 16 | 5 6 16 . Robot Miss Streak 6 | . 3 6 . Penetration Max . | . . . . Secondary Targets 2 | . . 2 . Max Gunslinging Chain 1 | . . 1 . Shots Hit Robots 210 | 5 22 183 . Core Hits 128 | 4 20 104 . Critical Kills . | . . . . Critical Parts Destroyed 2 | . . 2 . Critical Strikes 8 | . . 8 . Burn 1 | . . 1 . Destroy 1 | . . 1 . Blast 5 | . . 5 . Smash 1 | . . 1 . Melee Attacks 4 | . . 4 . Impact 4 | . . 4 . Slashing . | . . . . Piercing . | . . . . Sneak Attacks . | . . . . Combat Hostiles . | . . . . Follow-up Attacks . | . . . . Damage Inflicted 5323 | 71 753 4499 . Guns 1593 | 71 222 1300 . Cannons 2043 | . . 2043 . Explosions 1559 | . 531 1028 . Melee 123 | . . 123 . Ramming 5 | . . 5 . Kinetic 3238 | 26 141 3071 . Thermal 398 | 45 81 272 . Explosive 1559 | . 531 1028 . Electromagnetic . | . . . . Impact 123 | . . 123 . Slashing . | . . . . Piercing . | . . . . Highest Corruption 6 | . . 6 6 Average Corruption 6 | . . 6 6 Corruption Purged . | . . . . Corruption Blocked . | . . . . Effects 9 | . . 7 2 Message Errors 3 | . . 2 1 Matter Fused 3 | . . 3 . Heat Flow Errors 2 | . . 1 1 Data Loss (minor) 1 | . . 1 . Overload Shots . | . . . . Overflow Damage 113 | . 17 96 . Projectiles 36 | . . 36 . Explosions 31 | . 17 14 . Melee 46 | . . 46 . Knockbacks 21 | . . 21 . Impact . | . . . . Kinetic 18 | . . 18 . Secondary 3 | . . 3 . Self-Inflicted Damage 50 | . . 50 . Shots 3 | . . 3 . Rammed . | . . . . Targets Rammed 1 | . . 1 . Kicked 1 | . . 1 . Crushed . | . . . . Highest Temperature 217 | . 36 217 187 Average Temperature 39 | . 19 39 103 Received Heat Transfer 898 | . 75 814 9 Siege Activations . | . . . . Martial Activations . | . . . . Shielding Activations . | . . . . Robots Disrupted . | . . . . Combat Hostiles . | . . . . Robots Corrupted 2 | . . 2 . Combat Hostiles 2 | . . 2 . Parts Fried 2 | . . 2 . Impact Corruptions 3 | . . 3 . Robots Melted . | . . . . Combat Hostiles . | . . . . Parts Melted 3 | . . 3 . Heat Transferred 1017 | 100 175 742 . Parts Sabotaged . | . . . . Parts Stolen . | . . . . Parts Stripped . | . . . . Power Chain Reactions . | . . . . Alert | -11 -10 -9 -9 ------- Run | Yrd Mat Mat Min Maximum Alert Level 3 | . . 3 2 Low Security (%) 37 | 100 100 26 . Level 1 6 | . . 6 59 Level 2 8 | . . 8 40 Level 3 47 | . . 57 . Level 4 . | . . . . Level 5 . | . . . . High Security . | . . . . Max Security . | . . . . Sterilizations 1 | . . 1 . Peak Influence 1079 | 5 113 1079 417 Initial 417 | . . 44 417 Average 499 | 1 14 593 396 Influence Increases 1865 | 15 173 1677 . Destroy 0b10 Robot/C 1120 | . 80 1040 . Destroy 0b10 Robot/NC 165 | 15 30 120 . Destroy Leader 272 | . 20 252 . Successful Hack 22 | . 4 18 . Disable Machine 90 | . 30 60 . Destroy Structure 91 | . 9 82 . Lose Combat Pursuer 105 | . . 105 . Influence Decreases 1488 | 15 68 711 694 Entered New Map 715 | . . 61 654 Time Decay 633 | 15 68 510 40 Lost Part 140 | . . 140 . Squads Dispatched 9 | . . 9 . Investigation 1 | . . 1 . Extermination . | . . . . Reinforcement 6 | . . 6 . Assault 2 | . . 2 . Garrison . | . . . . Intercept . | . . . . Searches Triggered . | . . . . Construction Impeded 1 | . . 1 . Haulers Reinforced . | . . . . Active Scanning Responses . | . . . . Cargo Convoy Interrupts . | . . . . Stealth | -11 -10 -9 -9 --------- Run | Yrd Mat Mat Min Distress Signals 5 | . 1 4 . Communications Jammed . | . . . . Distress Signals . | . . . . Times Spotted 86 | . 10 74 2 Peak Tracking Total 6 | . 4 6 2 Tactical Retreats 5 | . . 5 . Traps | -11 -10 -9 -9 ------- Run | Yrd Mat Mat Min Traps Triggered 1 | . . 1 . Indirectly . | . . . . Trap Hack Attempts . | . . . . Triggered . | . . . . Disarmed . | . . . . Reprogrammed . | . . . . Reused . | . . . . Traps Extracted . | . . . . Installed . | . . . . Triggered . | . . . . Machines | -11 -10 -9 -9 ---------- Run | Yrd Mat Mat Min Machines Disabled 7 | . 3 4 . Max in Single Turn 1 | . 1 1 . Machines Repaired . | . . . . Machines Dismantled . | . . . . Machines Sabotaged . | . . . . Overloaded Fab Kills . | . . . . Hacking | -11 -10 -9 -9 --------- Run | Yrd Mat Mat Min Machines Accessed 6 | . 1 5 . Terminals 5 | . 1 4 . Fabricators . | . . . . Repair Stations 1 | . . 1 . Recycling Units . | . . . . Scanalyzers . | . . . . Garrison Access . | . . . . Total Hacks 23 | . 2 21 . Successful 18 | . 1 17 . Failed 5 | . 1 4 . Catastrophic 1 | . . 1 . Database Lockouts . | . . . . Manual 7 | . . 7 . Terminals 11 | . 2 9 . Fabricators . | . . . . Repair Stations 12 | . . 12 . Recycling Units . | . . . . Scanalyzers . | . . . . Garrison Access . | . . . . Terminal Hacks 6 | . 1 5 . Terminal Index 1 | . . 1 . Locate Traps 2 | . 1 1 . Transport Status 1 | . . 1 . Zone Layout 2 | . . 2 . Fabricator Hacks . | . . . . Repair Station Hacks 10 | . . 10 . Scan Component 5 | . . 5 . Repair 5 | . . 5 . Recycling Unit Hacks . | . . . . Scanalyzer . | . . . . Garrison Access Hacks . | . . . . Unauthorized Hacks 2 | . . 2 . Terminals 2 | . . 2 . Track 1 | . . 1 . Botnet 1 | . . 1 . Fabricators . | . . . . Repair Stations . | . . . . Recycling Units . | . . . . Scanalyzers . | . . . . Garrison Access . | . . . . Data Cores Recovered . | . . . . Used . | . . . . Hacking Detections 4 | . 1 3 . Full Trace Events . | . . . . Feedback Events . | . . . . Feedback Blocked . | . . . . Robot Schematics Acquired . | . . . . Robots Built . | . . . . Authchips . | . . . . Time . | . . . . Total Robot Build Rating . | . . . . Part Schematics Acquired . | . . . . Parts Built . | . . . . Authchips . | . . . . Time . | . . . . Total Part Build Rating . | . . . . Part Studies Acquired . | . . . . Parts Repaired 5 | . . 5 . Time 179 | . . 179 . Parts Recycled . | . . . . Recycled Matter . | . . . . Retrieved Matter . | . . . . Retrieved Components . | . . . . Parts Scanalyzed . | . . . . Part Schematics Acquired . | . . . . Parts Damaged . | . . . . Bothacking | -11 -10 -9 -9 ------------ Run | Yrd Mat Mat Min Used RIF Installer . | . . . . Robots Hacked . | . . . . Non-combat . | . . . . Combat . | . . . . Robot Hacks Applied . | . . . . Relay Couplers Released . | . . . . Fabnet Peak Effective % . | . . . . Robots Rewired . | . . . . Allies Hacked . | . . . . Hacks Repelled . | . . . . Allies | -11 -10 -9 -9 -------- Run | Yrd Mat Mat Min Total Allies 2 | . . . 2 Largest Group 2 | . . . 2 Highest-Rated Group 51 | . . . 51 Highest-Rated Ally 31 | . . . 31 Total Orders . | . . . . Ally Attacks 2 | . . . 2 Total Damage 41 | . . . 41 Kills . | . . . . Allies Corrupted . | . . . . Allies Melted . | . . . . Intel | -11 -10 -9 -9 ------- Run | Yrd Mat Mat Min Active Infowar (turns) 2205 | 63 615 1428 99 Terrain 1764 | 42 543 1179 . Structural 94 | . . 94 . Seismic 787 | 63 113 611 . Machine Analysis 289 | . . 190 99 Robot Analysis Total . | . . . . Derelict Logs Recovered . | . . . . Drone Launches . | . . . . Drone Recoveries . | . . . . Exploration | -11 -10 -9 -9 ------------- Run | Yrd Mat Mat Min Turns Passed 4691 | 108 615 3869 99 Spaces Moved 1656 | 100 277 1242 37 Core 87 | 4 . 46 37 Treads . | . . . . Legs 835 | . . 835 . Wheels 734 | 96 277 361 . Hover . | . . . . Flight . | . . . . Fastest Speed 50 | 50 80 80 250 Average Speed 135 | 78 80 148 250 Slowest Speed 350 | 80 80 350 250 Overloaded Moves . | . . . . Propulsion Burnouts . | . . . . Robots Hopped . | . . . . Potential Cave-ins . | . . . . Cave-ins Triggered . | . . . . Exploration Rate (%) 33 | 4 41 75 12 Regions Visited 3 Branch Regions 1 Pre-discovered Areas . | . . . . Known Exits Taken . | . . . . Unknown Exits Taken 3 | 1 1 1 . Scrap Searched . | . . . . Spaces Dug 1 | . . 1 . Terrain Destroyed 90 | . 9 81 . Melee . | . . . . Projectile 18 | . . 18 . AOE 72 | . 9 63 . Terrain Rammed . | . . . . Walls Destroyed . | . . . . Machines Disabled . | . . . . Actions | -11 -10 -9 -9 --------- Run | Yrd Mat Mat Min Total 3722 | 117 626 2936 43 Wait 1736 | 2 313 1415 6 Move 1653 | 99 276 1241 37 Hop . | . . . . Pick Up 22 | 5 5 12 . Fast Attach 30 | 7 . 23 . Attach 9 | . . 9 . Detach 4 | . . 4 . Swap 24 | . 5 19 . Drop 24 | . 2 22 . Fire 215 | 4 25 186 . Melee 4 | . . 4 . Ram . | . . . . Kick 1 | . . 1 . Crush . | . . . . Escape Stasis . | . . . . Rewire . | . . . . Trap . | . . . . Miscellaneous . | . . . . Route ------- -11/Scrapyard -10/Materials (discovered 2 exits: *Mat / [*Min]) -9/Materials (discovered 4 exits: [*Mat x2] / [*Min] / [*Sto]) -9/Mines History --------- Turn | Location | Event 14 | -11/Scrapyard | Discovered new exit (range 16) 109 | -11/Scrapyard | Entered Materials 300 | -10/Materials | Build established: Mutant 650 | -10/Materials | Discovered new exit (range 4) 688 | -10/Materials | Discovered new exit (range 13) 724 | -10/Materials | Entered another Materials area 724 | -9/Materials | Evolved 2 slots: Utility x2 1512 | -9/Materials | Discovered new exit (range 14) 1569 | -9/Materials | Repaired Imp. Terrain Scanner 1596 | -9/Materials | Repaired Heat Sink 1626 | -9/Materials | Discovered new exit (range 15) 2209 | -9/Materials | Build established: Scavenger-Mutant 2335 | -9/Materials | Discovered new exit (range 15) 2819 | -9/Materials | Build established: Mutant 2966 | -9/Materials | Repaired Imp. Light Cannon 2999 | -9/Materials | Repaired Imp. Light Cannon 3050 | -9/Materials | Repaired Hvy. Ion Engine 3336 | -9/Materials | Discovered new exit (range 3) 3924 | -9/Materials | First assault squad dispatched 4063 | -9/Materials | Core integrity fell below 50% 4418 | -9/Materials | Lost 4 parts (3u1w) 4445 | -9/Materials | Sterilization system engaged 4445 | -9/Materials | Non-combat units ordered to evacuate 4524 | -9/Materials | Lost 5 parts (1p2n1u1w) 4545 | -9/Materials | Combat units ordered to evacuate 4570 | -9/Materials | Core integrity fell below 20% 4593 | -9/Materials | Entered Mines 4594 | -9/Mines | Assembled infested the area 4664 | -9/Mines | Met 8R-AWN 4692 | -9/Mines | Destroyed by D-53 Grenadier with Mini Grenade Launcher Last Messages --------------- 04651_ HV Slug penetrates Wall. 04657_ HV Slug penetrates as-26431. 04657_ as-26431 suffers critical hit (Destroy). 04657_ as-26431 destroyed. 04657_ HV Slug penetrates Wall. 04658_ System corrupted: Heat flow error (+215). 8R-AWN: Hm, I'm not getting any readings that show these Assembled are different than what we have already... But you... you look interesting. Maybe they'll want to see you. Come along little bot, it's safer with us than out here, anyway. 04664_ Acquired 20 matter. 04674_ K-01 Serf collects debris. 8R-AWN: I can't promise they won't dissect you, by the way. They're weird like that. Either way, I'm sure they'll be happy to try putting you back together again. 04690_ HV Slug penetrates D-53 Grenadier. 04690_ D-53 Grenadier suffers critical hit (Destroy). 04690_ HV Slug penetrates Wall. 04690_ K-01 Serf collects debris. Map ----- +----------------------------------------------------+ | | | | | | | | | | | | | | | | | | | | | | | | | ?????????????????????????????????????????????????? | | ?????????????????????????????????????????????????? | | ?????????????????????????##??????????????????????? | | ???????????????????????## ??????????????????????? | | ??????????????????###### ?????####?????????????? | | ??????????????????? ????## #########?????? | | ???????????????????? ????# ##????? | | ???????????????????## ###### #????? | | ???????????????????#; # z #????? | | ????????????????????# %d ### #????? | | ?????????????????????# d #??#### ## ##???? | | ?????????????????????## g ######; ### ##??? | | ?????????????????????# #?## ##?? | | ?????????????????????# @ #####"##??## ##? | | ?????????????????????# #???##?????## ## | | ?????????????????????# #??????????## # | | ?????????????????????# g##??????????# # | | ?????????????????????# %;#??????????# # | | ?????????????????????## ##%t%k?????????## # | | ??????????????????????#########%k?????????# # | | ???????????????????????????????#% ????????## ## | | ????????????????????????????????##%%???????## ##? | | ??????????????????????????????????? ???????####?? | | ????????????????????????????????????##???????????? | | ?????????????????????????????????????????????????? | | ?????????????????????????????????????????????????? | | ?????????????????????????????????????????????????? | | ?????????????????????????????????????????????????? | | ?????????????????????????????????????????????????? | | ?????????????????????????????????????????????????? | | ?????????????????????????????????????????????????? | | ?????????????????????????????????????????????????? | | ?????????????????????????????????????????????????? | | ?????????????????????????????????????????????????? | | ?????????????????????????????????????????????????? | | ?????????????????????????????????????????????????? | | ?????????????????????????????????????????????????? | | ?????????????????????????????????????????????????? | +----------------------------------------------------+ Best States ------------- Heat Dissipation 38 Energy Generation 14 Energy Capacity 280 Matter Stores 350 Matter Capacity 350 Sight Range 16 Terrain Scan Range 16 Terrain Scan Density 85 Armor Coverage 225 Evasion (%) 57 Melee Accuracy 5 Offensive Hacking 10 Item Schematics ----------------- None Robot Schematics ------------------ None Fabricated ------------ Nothing Repaired ---------- Imp. Terrain Scanner | 22% | -9/Materials Heat Sink | 33% | -9/Materials Imp. Light Cannon | 22% | -9/Materials Imp. Light Cannon | 33% | -9/Materials Hvy. Ion Engine | 11% | -9/Materials Studied --------- None Alien Tech Used ----------------- None Achievements -------------- None Challenges ------------ None Game ------ Seed EnergyTimingNanovents Manual? 0 Play Time 00:43:06 Cumulative 280.3 hours Start 2026.08.25 @ 03:28:58 End 2026.08.29 @ 17:21:19 Sessions 3 Manual Loads 0 Difficulty Rogue Special Mode None Game No. 430 Rogue 430 Adventurer 0 Explorer 0 Win Type - Total 0 Types 0/0/0/0/0/0/0/0/0/0 Lore% 50 Gallery% 51 Achievement% 32 Wizard Run 0 Options --------- Layout 0 ASCII 0 Keyboard 1 Movement Numpad Keybinds 0 Fullscreen 1 Font 18/SmallcapsGlow Map View 76x50 Zoom Use 0% Tactical HUD 1 Map Filters NONE Filters NONE Steam 1 RUN: 3fdd7957-6776-417e-9e5a-3b3a40b9ef9a